[Event "EYCC Open-U10 2019"]
[Site "Bratislava"]
[Date "2019.08.08"]
[Round "7.32"]
[White "Kisic, Jovan"]
[Black "Klaska, Philipp Leon"]
[Result "1-0"]
[ECO "D55"]
[WhiteElo "1757"]
[BlackElo "1441"]
[Annotator "NA"]
[PlyCount "131"]
[EventDate "2019.08.02"]
[EventType "swiss"]
[EventCountry "SVK"]
[SourceTitle "playchess.com"]
[Source "ChessBase"]
[SourceQuality "1"]
[TimeControl "40/5400+30:1800+30"]

1. d4 {[%emt 0:00:12]} d5 {[%emt 0:00:00]} 2. c4 {[%emt 0:02:34]} e6 {[%emt 0:00:00]} 3. Nc3 {[%emt 0:01:24]} Nf6 {[%emt 0:00:05]} 4. Bg5 {[%emt 0:01:22]} Be7 {[%emt 0:00:25]} 5. Nf3 {[%emt 0:01:18]} O-O {[%emt 0:01:21]} 6. e3 {[%emt 0:01:11]} b6 {[%emt 0:03:32]} 7. Rc1 {[%emt 0:02:40]} Bb7 {[%emt 0:02:16]} 8. Bxf6 {[%emt 0:02:03]} Bxf6 {[%emt 0:00:51]} 9. cxd5 {[%emt 0:00:15]} exd5 {[%emt 0:02:22]} 10. Bd3 {[%emt 0:01:12]} Re8 {[%emt 0:02:13]} 11. O-O {[%emt 0:02:11]} Nd7 {[%emt 0:07:19]} 12. Qc2 {[%emt 0:01:45]} h6 {[%emt 0:02:22]} 13. Nb5 {[%emt 0:00:18]} c6 {[%emt 0:22:25]} 14. Nd6 {[%emt 0:02:04]} Qc7 {[%emt 0:03:51]} 15. Nxe8 {[%emt 0:00:35]} Rxe8 {[%emt 0:00:06]} 16. b4 {[%emt 0:03:12]} Qd6 {[%emt 0:08:45]} 17. Qa4 {[%emt 0:05:03]} Qb8 {[%emt 0:04:14]} 18. b5 {[%emt 0:01:01]} c5 {[%emt 0:00:58]} 19. Bf5 {[%emt 0:00:10]} Bc8 {[%emt 0:09:09]} 20. Bxd7 {[%emt 0:01:41]} Bxd7 {[%emt 0:01:16]} 21. dxc5 {[%emt 0:00:11]} Re4 {[%emt 0:01:25]} 22. Qb3 {[%emt 0:03:59]} Be6 {[%emt 0:02:44]} 23. Qd3 {[%emt 0:02:08]} Bg4 {[%emt 0:03:52]} 24. Nd2 {[%emt 0:00:17]} Ra4 {[%emt 0:01:29]} 25. Qxd5 {[%emt 0:02:18]} Be6 {[%emt 0:01:25]} 26. Qd6 {[%emt 0:00:14]} Qxd6 {[%emt 0:02:47]} 27. cxd6 {[%emt 0:00:09]} Rxa2 {[%emt 0:00:11]} 28. Ne4 {[%emt 0:00:40]} Bd8 {[%emt 0:05:51]} 29. d7 {[%emt 0:00:25]} Kf8 {[%emt 0:00:36]} 30. Ra1 {[%emt 0:02:23]} Ra5 {[%emt 0:02:30]} 31. Rxa5 {[%emt 0:02:15]} bxa5 {[%emt 0:00:07]} 32. Rd1 {[%emt 0:03:26]} Ke7 {[%emt 0:01:58]} 33. Nc5 {[%emt 0:01:22]} Bc4 {[%emt 0:03:27]} 34. Rd4 {[%emt 0:04:09]} Bxb5 {[%emt 0:02:11]} 35. Re4+ {[%emt 0:00:06]} Kd6 {[%emt 0:00:59]} 36. Nb7+ {[%emt 0:00:59]} Kc7 {[%emt 0:00:18]} 37. Nxa5 {[%emt 0:01:08]} Kxd7 {[%emt 0:00:29]} 38. Rd4+ {[%emt 0:01:18]} Kc8 {[%emt 0:01:20]} 39. Nb3 {[%emt 0:00:08]} Bb6 {[%emt 0:01:00]} 40. Rb4 {[%emt 0:00:48]} a6 {[%emt 0:00:53]} 41. Nd4 {[%emt 0:30:17]} Bxd4 {[%emt 0:30:11]} 42. exd4 Kc7 {[%emt 0:00:00]} 43. f3 {[%emt 0:00:00]} Kb6 {[%emt 0:00:00]} 44. Kf2 {[%emt 0:00:00]} a5 {[%emt 0:00:00]} 45. Rb1 {[%emt 0:00:00]} a4 {[%emt 0:00:00]} 46. Ke3 {[%emt 0:00:00]} Ka5 {[%emt 0:00:00]} 47. Kd2 {[%emt 0:00:00]} a3 {[%emt 0:00:00]} 48. Kc3 {[%emt 0:00:00]} Ka4 {[%emt 0:00:00]} 49. d5 {[%emt 0:00:00]} a2 {[%emt 0:00:00]} 50. Ra1 {[%emt 0:00:00]} Ka3 {[%emt 0:00:00]} 51. d6 {[%emt 0:00:00]} Bd7 {[%emt 0:00:00]} 52. Kc4 {[%emt 0:00:00]} Kb2 {[%emt 0:00:00]} 53. Re1 {[%emt 0:00:00]} a1=Q {[%emt 0:00:00]} 54. Rxa1 {[%emt 0:00:00]} Kxa1 {[%emt 0:00:00]} 55. Kc5 {[%emt 0:00:00]} Kb2 {[%emt 0:00:00]} 56. Kb6 {[%emt 0:00:00]} Kc3 {[%emt 0:00:00]} 57. Kc7 {[%emt 0:00:00]} Be6 {[%emt 0:00:00]} 58. d7 {[%emt 0:00:00]} Bxd7 {[%emt 0:00:00]} 59. Kxd7 {[%emt 0:00:00]} Kd3 {[%emt 0:00:00]} 60. Ke7 {[%emt 0:00:00]} f5 {[%emt 0:00:00]} 61. Kf7 {[%emt 0:00:00]} h5 {[%emt 0:00:00]} 62. Kxg7 {[%emt 0:00:00]} h4 {[%emt 0:00:00]} 63. Kg6 {[%emt 0:00:00]} f4 {[%emt 0:00:00]} 64. Kg5 {[%emt 0:00:00]} h3 {[%emt 0:00:00]} 65. gxh3 {[%emt 0:00:00]} Ke3 {[%emt 0:00:00]} 66. Kg4 1-0

[Event "EYCC Open-U10 2019"]
[Site "Bratislava"]
[Date "2019.08.08"]
[Round "7.33"]
[White "Farias, David Nuno M E"]
[Black "Udipi, Kala Kishan"]
[Result "1/2-1/2"]
[ECO "B90"]
[WhiteElo "1372"]
[BlackElo "1732"]
[Annotator "NA"]
[PlyCount "99"]
[EventDate "2019.08.02"]
[EventType "swiss"]
[EventCountry "SVK"]
[SourceTitle "playchess.com"]
[Source "ChessBase"]
[SourceQuality "1"]
[TimeControl "40/5400+30:1800+30"]

1. e4 c5 2. Nf3 d6 3. d4 Nf6 4. Nc3 cxd4 5. Nxd4 a6 6. Be3 Ng4 7. Bc1 Nf6 8. Be3 e5 9. Nf3 Be6 10. Be2 Be7 11. O-O O-O 12. Qd2 b5 13. a3 Nbd7 14. Rad1 Nb6 15. b3 Rc8 16. Bd3 Bg4 17. h3 Bxf3 18. gxf3 Nbd7 19. Ne2 Nc5 20. Ng3 g6 21. Bh6 Re8 22. Kh2 Kh8 23. Rg1 Rg8 24. Rg2 Ne6 25. Rdg1 Bf8 26. Be3 Bg7 27. c4 Qd7 28. cxb5 axb5 29. Ra1 Ra8 30. Ne2 Rgb8 31. Bc2 Nh5 32. Ra2 Qc7 33. a4 b4 34. Bd3 d5 35. Rc2 Qd6 36. Qc1 d4 37. Bd2 Qe7 38. Ra2 Qf6 39. f4 exf4 40. f3 h6 41. Qe1 Ng5 42. Ng1 Qd6 43. h4 Ne6 44. Nh3 Be5 45. Rc2 Ra7 46. Qc1 Rc7 47. Rxc7 Qxc7 48. Qxc7 Bxc7 49. Rg1 Nc5 50. Bc4 1/2-1/2

[Event "EYCC Open-U10 2019"]
[Site "Bratislava"]
[Date "2019.08.08"]
[Round "7.34"]
[White "Jaakkola, Niklas"]
[Black "Stary, Vojtech"]
[Result "1-0"]
[ECO "C79"]
[WhiteElo "1587"]
[BlackElo "1334"]
[Annotator "NA"]
[PlyCount "45"]
[EventDate "2019.08.02"]
[EventType "swiss"]
[EventCountry "SVK"]
[SourceTitle "playchess.com"]
[Source "ChessBase"]
[SourceQuality "1"]
[TimeControl "40/5400+30:1800+30"]

1. e4 {[%emt 0:00:00]} e5 {[%emt 0:00:00]} 2. Nf3 {[%emt 0:00:00]} Nc6 {[%emt 0:00:00]} 3. Bb5 {[%emt 0:00:00]} a6 {[%emt 0:00:00]} 4. Ba4 {[%emt 0:00:00]} Nf6 {[%emt 0:00:00]} 5. O-O {[%emt 0:00:19]} d6 {[%emt 0:00:57]} 6. d4 {[%emt 0:12:35]} exd4 {[%emt 0:00:21]} 7. Nxd4 {[%emt 0:03:21]} Bd7 {[%emt 0:01:56]} 8. Bxc6 {[%emt 0:01:48]} bxc6 {[%emt 0:00:07]} 9. Nc3 {[%emt 0:01:04]} g6 {[%emt 0:02:33]} 10. Bg5 {[%emt 0:09:45]} Bg7 {[%emt 0:02:47]} 11. f4 {[%emt 0:09:44]} O-O {[%emt 0:03:41]} 12. e5 {[%emt 0:07:59]} d5 {[%emt 0:09:47]} 13. Bxf6 {[%emt 0:03:55]} Bxf6 {[%emt 0:00:20]} 14. exf6 {[%emt 0:00:06]} Qxf6 {[%emt 0:00:14]} 15. f5 {[%emt 0:01:11]} Qd8 {[%emt 0:07:36]} 16. f6 {[%emt 0:04:26]} c5 {[%emt 0:03:17]} 17. Nb3 {[%emt 0:02:30]} c4 {[%emt 0:01:25]} 18. Nc5 {[%emt 0:02:05]} c6 {[%emt 0:00:46]} 19. Qd2 {[%emt 0:01:32]} Kh8 {[%emt 0:00:47]} 20. Nxd7 {[%emt 0:00:18]} Qxd7 {[%emt 0:00:11]} 21. Qh6 {[%emt 0:00:23]} Rg8 {[%emt 0:01:13]} 22. Rf3 {[%emt 0:00:37]} Qa7+ {[%emt 0:01:40]} 23. Kh1 {[%emt 0:00:10]} 1-0

[Event "EYCC Open-U10 2019"]
[Site "Bratislava"]
[Date "2019.08.08"]
[Round "7.35"]
[White "Govoreanu, Matei"]
[Black "Torosyan, Bagrat"]
[Result "1-0"]
[ECO "B22"]
[WhiteElo "1241"]
[BlackElo "1586"]
[Annotator "NA"]
[PlyCount "149"]
[EventDate "2019.08.02"]
[EventType "swiss"]
[EventCountry "SVK"]
[SourceTitle "playchess.com"]
[Source "ChessBase"]
[SourceQuality "1"]
[TimeControl "40/5400+30:1800+30"]

1. e4 {[%emt 0:00:26]} c5 {[%emt 0:00:00]} 2. c3 {[%emt 0:02:10]} d5 {[%emt 0:00:00]} 3. exd5 {[%emt 0:01:44]} Qxd5 {[%emt 0:00:00]} 4. d4 {[%emt 0:02:11]} Nf6 {[%emt 0:00:01]} 5. Nf3 {[%emt 0:04:06]} cxd4 {[%emt 0:00:43]} 6. cxd4 {[%emt 0:02:49]} e6 {[%emt 0:02:09]} 7. a3 {[%emt 0:02:17]} b6 {[%emt 0:08:25]} 8. Nc3 {[%emt 0:01:43]} Qd8 {[%emt 0:00:59]} 9. Bb5+ {[%emt 0:00:45]} Bd7 {[%emt 0:00:36]} 10. Bxd7+ {[%emt 0:02:07]} Qxd7 {[%emt 0:00:32]} 11. Ne5 {[%emt 0:05:24]} Qb7 {[%emt 0:00:41]} 12. O-O {[%emt 0:06:17]} Bd6 {[%emt 0:00:53]} 13. Qa4+ {[%emt 0:01:05]} Nbd7 {[%emt 0:02:36]} 14. Nb5 {[%emt 0:05:38]} Be7 {[%emt 0:02:26]} 15. Nxd7 {[%emt 0:07:27]} Nxd7 {[%emt 0:03:07]} 16. Bf4 {[%emt 0:00:56]} O-O {[%emt 0:01:26]} 17. Rac1 {[%emt 0:02:03]} a6 {[%emt 0:32:14]} 18. Nd6 {[%emt 0:16:18]} Bxd6 {[%emt 0:00:37]} 19. Bxd6 {[%emt 0:00:16]} Rfc8 {[%emt 0:00:29]} 20. Qb3 {[%emt 0:02:14]} Nf6 {[%emt 0:02:57]} 21. h3 {[%emt 0:02:31]} h6 {[%emt 0:03:11]} 22. Qe3 {[%emt 0:04:13]} Nd5 {[%emt 0:08:23]} 23. Qd2 {[%emt 0:05:07]} Rd8 {[%emt 0:00:57]} 24. Be5 {[%emt 0:01:58]} Rd7 {[%emt 0:04:26]} 25. Rfd1 {[%emt 0:00:50]} Rad8 {[%emt 0:01:22]} 26. Qe2 {[%emt 0:02:29]} Ne7 {[%emt 0:04:42]} 27. Rc2 {[%emt 0:01:04]} Nd5 {[%emt 0:03:12]} 28. Qg4 {[%emt 0:01:21]} f5 {[%emt 0:04:13]} 29. Qg6 {[%emt 0:01:45]} Re7 {[%emt 0:02:16]} 30. Rdc1 {[%emt 0:02:23]} Qd7 {[%emt 0:01:29]} 31. Rc6 {[%emt 0:02:09]} Qe8 32. Rxe6 {[%emt 0:00:22]} Qxg6 {[%emt 0:06:44]} 33. Rxg6 {[%emt 0:00:14]} Rxe5 {[%emt 0:00:44]} 34. dxe5 {[%emt 0:01:01]} Nf4 {[%emt 0:00:10]} 35. Rd6 {[%emt 0:02:06]} Rxd6 {[%emt 0:01:50]} 36. exd6 {[%emt 0:00:06]} Kf7 {[%emt 0:00:18]} 37. Rd1 {[%emt 0:00:15]} Ke8 {[%emt 0:00:27]} 38. d7+ {[%emt 0:00:16]} Kd8 {[%emt 0:00:06]} 39. Rd6 {[%emt 0:00:50]} b5 {[%emt 0:00:25]} 40. Kf1 {[%emt 0:00:00]} Nh5 {[%emt 0:00:00]} 41. Ke2 {[%emt 0:00:55]} Nf6 {[%emt 0:00:19]} 42. Kd3 {[%emt 0:00:42]} Nxd7 {[%emt 0:00:08]} 43. Kd4 {[%emt 0:00:16]} a5 {[%emt 0:01:19]} 44. Kd5 {[%emt 0:00:20]} Kc7 {[%emt 0:00:43]} 45. Rc6+ {[%emt 0:00:43]} Kb7 {[%emt 0:00:41]} 46. Rg6 {[%emt 0:00:00]} Nf6+ {[%emt 0:00:19]} 47. Kc5 {[%emt 0:00:00]} Ne4+ {[%emt 0:00:34]} 48. Kxb5 {[%emt 0:00:00]} Nxf2 {[%emt 0:00:12]} 49. Rxg7+ {[%emt 0:00:00]} Kc8 {[%emt 0:00:07]} 50. Kc6 {[%emt 0:00:09]} Kd8 {[%emt 0:00:15]} 51. Rf7 {[%emt 0:00:22]} Ke8 {[%emt 0:00:51]} 52. Rxf5 {[%emt 0:00:11]} Nd3 {[%emt 0:00:19]} 53. b3 {[%emt 0:00:29]} Nc1 {[%emt 0:00:24]} 54. b4 {[%emt 0:00:21]} axb4 {[%emt 0:00:03]} 55. axb4 {[%emt 0:00:06]} Nb3 {[%emt 0:00:54]} 56. Re5+ {[%emt 0:00:19]} Kd8 {[%emt 0:00:09]} 57. b5 {[%emt 0:00:15]} Na5+ {[%emt 0:00:22]} 58. Kd5 {[%emt 0:00:21]} Kd7 {[%emt 0:00:17]} 59. Re6 {[%emt 0:00:15]} h5 {[%emt 0:00:13]} 60. Rh6 {[%emt 0:00:09]} Nb3 {[%emt 0:00:12]} 61. b6 {[%emt 0:01:44]} Na5 {[%emt 0:01:05]} 62. Rh7+ {[%emt 0:00:38]} Kc8 {[%emt 0:00:50]} 63. Kd6 {[%emt 0:00:11]} Kb8 {[%emt 0:00:13]} 64. g4 {[%emt 0:00:08]} hxg4 {[%emt 0:00:09]} 65. hxg4 {[%emt 0:00:05]} Nc4+ {[%emt 0:00:08]} 66. Kc5 {[%emt 0:00:19]} Nxb6 {[%emt 0:00:08]} 67. Kxb6 {[%emt 0:00:09]} Kc8 {[%emt 0:00:04]} 68. g5 {[%emt 0:00:10]} Kd8 {[%emt 0:00:05]} 69. Kc6 {[%emt 0:00:10]} Ke8 {[%emt 0:00:09]} 70. Ra7 {[%emt 0:00:13]} Kf8 {[%emt 0:00:17]} 71. Kd6 {[%emt 0:00:07]} Kg8 {[%emt 0:00:13]} 72. Ke6 {[%emt 0:00:05]} Kh8 {[%emt 0:00:14]} 73. Kf6 {[%emt 0:00:07]} Kg8 {[%emt 0:00:09]} 74. g6 {[%emt 0:00:08]} Kh8 {[%emt 0:00:05]} 75. Ra8# 1-0

[Event "EYCC Open-U10 2019"]
[Site "Bratislava"]
[Date "2019.08.08"]
[Round "7.36"]
[White "Sarafis, Rafail"]
[Black "Perossa, Nicolas"]
[Result "0-1"]
[ECO "E00"]
[WhiteElo "1094"]
[BlackElo "1661"]
[Annotator "NA"]
[PlyCount "120"]
[EventDate "2019.08.02"]
[EventType "swiss"]
[EventCountry "SVK"]
[SourceTitle "playchess.com"]
[Source "ChessBase"]
[SourceQuality "1"]
[TimeControl "40/5400+30:1800+30"]

1. d4 {[%emt 0:00:00]} e6 {[%emt 0:00:00]} 2. c4 {[%emt 0:00:00]} Nf6 {[%emt 0:00:00]} 3. Nc3 {[%emt 0:00:05]} d5 {[%emt 0:00:00]} 4. a3 {[%emt 0:00:51]} Be7 {[%emt 0:00:23]} 5. Nf3 {[%emt 0:00:10]} O-O {[%emt 0:00:11]} 6. Bg5 {[%emt 0:00:17]} Nbd7 {[%emt 0:00:21]} 7. e3 {[%emt 0:00:45]} b6 {[%emt 0:00:38]} 8. Qc2 {[%emt 0:00:35]} Bb7 {[%emt 0:00:17]} 9. O-O-O {[%emt 0:00:31]} c6 {[%emt 0:01:04]} 10. Bd3 {[%emt 0:00:35]} h6 {[%emt 0:00:25]} 11. Bh4 Rc8 {[%emt 0:08:10]} 12. Kb1 {[%emt 0:05:39]} c5 {[%emt 0:21:27]} 13. cxd5 {[%emt 0:00:56]} Nxd5 {[%emt 0:03:24]} 14. Bxe7 {[%emt 0:02:37]} Qxe7 {[%emt 0:04:35]} 15. e4 cxd4 {[%emt 0:03:33]} 16. exd5 {[%emt 0:06:48]} dxc3 {[%emt 0:00:26]} 17. d6 {[%emt 0:16:33]} Qf6 {[%emt 0:00:45]} 18. Nd4 cxb2 {[%emt 0:02:59]} 19. Qxb2 {[%emt 0:01:26]} Ne5 {[%emt 0:29:26]} 20. Bb5 Rfd8 {[%emt 0:04:04]} 21. Nb3 {[%emt 0:12:10]} Bd5 {[%emt 0:10:16]} 22. Rc1 {[%emt 0:11:52]} Rxc1+ {[%emt 0:00:55]} 23. Rxc1 {[%emt 0:00:43]} Rxd6 {[%emt 0:00:46]} 24. f3 {[%emt 0:08:15]} Qf5+ {[%emt 0:00:38]} 25. Ka1 {[%emt 0:00:41]} Ng6 {[%emt 0:00:50]} 26. Nd4 {[%emt 0:05:32]} Qf6 {[%emt 0:00:19]} 27. Rc8+ {[%emt 0:00:41]} Kh7 {[%emt 0:00:53]} 28. Rc7 {[%emt 0:00:39]} a5 {[%emt 0:00:33]} 29. Qc3 {[%emt 0:04:50]} Ne7 {[%emt 0:01:38]} 30. Kb2 {[%emt 0:02:16]} g6 {[%emt 0:00:40]} 31. Be8 {[%emt 0:03:24]} Rd8 {[%emt 0:00:20]} 32. Bb5 {[%emt 0:01:34]} Rf8 {[%emt 0:00:22]} 33. a4 {[%emt 0:01:49]} Kg7 {[%emt 0:00:24]} 34. Nxe6+ {[%emt 0:01:49]} Bxe6 {[%emt 0:00:20]} 35. Rxe7 {[%emt 0:00:12]} Qxc3+ {[%emt 0:00:13]} 36. Kxc3 {[%emt 0:00:06]} Rc8+ {[%emt 0:00:26]} 37. Kd2 {[%emt 0:01:22]} Bc4 {[%emt 0:00:54]} 38. Rb7 {[%emt 0:01:01]} Bxb5 {[%emt 0:01:28]} 39. axb5 {[%emt 0:00:16]} Rd8+ {[%emt 0:00:31]} 40. Kc2 {[%emt 0:00:00]} Rd6 {[%emt 0:00:00]} 41. Kc3 {[%emt 0:03:03]} Kf6 {[%emt 0:00:17]} 42. g3 {[%emt 0:01:01]} Ke6 {[%emt 0:00:41]} 43. f4 {[%emt 0:01:05]} f6 {[%emt 0:02:22]} 44. g4 {[%emt 0:04:49]} h5 {[%emt 0:01:43]} 45. h3 {[%emt 0:00:28]} hxg4 {[%emt 0:00:06]} 46. hxg4 {[%emt 0:01:19]} g5 {[%emt 0:01:11]} 47. f5+ {[%emt 0:02:33]} Ke5 {[%emt 0:01:21]} 48. Rc7 {[%emt 0:00:39]} Rd5 {[%emt 0:04:03]} 49. Re7+ {[%emt 0:03:35]} Kf4 {[%emt 0:00:18]} 50. Re6 {[%emt 0:03:06]} Rxb5 {[%emt 0:00:30]} 51. Rxf6 Kxg4 52. Kc4 {[%emt 0:02:15]} Rc5+ {[%emt 0:06:58]} 53. Kb3 {[%emt 0:00:31]} b5 {[%emt 0:01:49]} 54. Ra6 {[%emt 0:02:42]} a4+ {[%emt 0:00:34]} 55. Rxa4+ {[%emt 0:01:15]} bxa4+ {[%emt 0:00:11]} 56. Kxa4 {[%emt 0:00:06]} Kxf5 {[%emt 0:00:10]} 57. Kb4 {[%emt 0:00:15]} Rc8 {[%emt 0:00:08]} 58. Kb5 {[%emt 0:00:37]} Ke5 {[%emt 0:00:30]} 59. Kb6 {[%emt 0:01:01]} Kd5 {[%emt 0:00:24]} 60. Ka7 {[%emt 0:00:38]} Ke5 0-1

[Event "EYCC Open-U10 2019"]
[Site "Bratislava"]
[Date "2019.08.08"]
[Round "7.37"]
[White "Hasanli, Ziya"]
[Black "Butolo, Alexandru-Mircea"]
[Result "0-1"]
[ECO "D81"]
[WhiteElo "1315"]
[BlackElo "1593"]
[Annotator "NA"]
[PlyCount "114"]
[EventDate "2019.08.02"]
[EventType "swiss"]
[EventCountry "SVK"]
[SourceTitle "playchess.com"]
[Source "ChessBase"]
[SourceQuality "1"]
[TimeControl "40/5400+30:1800+30"]

1. d4 {[%emt 0:00:00]} Nf6 {[%emt 0:00:27]} 2. c4 {[%emt 0:00:00]} g6 {[%emt 0:01:05]} 3. Nc3 {[%emt 0:00:00]} d5 {[%emt 0:00:27]} 4. Qb3 {[%emt 0:00:45]} c6 {[%emt 0:11:24]} 5. e3 {[%emt 0:03:01]} Bg7 {[%emt 0:00:39]} 6. Nf3 {[%emt 0:01:25]} O-O {[%emt 0:00:46]} 7. a4 {[%emt 0:05:58]} e6 {[%emt 0:05:06]} 8. Bd3 {[%emt 0:01:51]} Nbd7 {[%emt 0:01:02]} 9. O-O {[%emt 0:06:25]} Qc7 {[%emt 0:01:13]} 10. cxd5 {[%emt 0:03:44]} exd5 {[%emt 0:01:54]} 11. Bd2 {[%emt 0:02:23]} Re8 {[%emt 0:01:25]} 12. Rac1 {[%emt 0:01:34]} Qd8 {[%emt 0:05:27]} 13. Ne1 {[%emt 0:13:42]} Nb6 {[%emt 0:07:40]} 14. f3 {[%emt 0:07:17]} Be6 {[%emt 0:03:23]} 15. Ne2 {[%emt 0:10:41]} Bf5 {[%emt 0:05:18]} 16. Bxf5 {[%emt 0:09:20]} gxf5 {[%emt 0:02:20]} 17. Ng3 {[%emt 0:07:07]} Nc4 {[%emt 0:07:12]} 18. Qc2 {[%emt 0:04:44]} f4 {[%emt 0:17:43]} 19. exf4 {[%emt 0:03:43]} Qb6 {[%emt 0:00:14]} 20. Nf5 {[%emt 0:01:32]} Re2 {[%emt 0:00:24]} 21. Rd1 {[%emt 0:02:14]} Qxb2 {[%emt 0:00:52]} 22. Qxb2 {[%emt 0:00:23]} Nxb2 {[%emt 0:00:14]} 23. Ng3 {[%emt 0:00:02]} Re6 {[%emt 0:02:06]} 24. Rb1 {[%emt 0:01:08]} Nc4 {[%emt 0:00:28]} 25. Bc1 {[%emt 0:00:32]} b6 {[%emt 0:03:41]} 26. Nd3 {[%emt 0:01:05]} Nd7 {[%emt 0:00:44]} 27. Ne5 {[%emt 0:01:09]} Bxe5 {[%emt 0:00:38]} 28. fxe5 {[%emt 0:00:30]} c5 {[%emt 0:00:59]} 29. dxc5 {[%emt 0:02:42]} Nxc5 {[%emt 0:00:17]} 30. f4 {[%emt 0:00:31]} Nxa4 {[%emt 0:00:33]} 31. Nh5 {[%emt 0:01:25]} Rd8 {[%emt 0:01:14]} 32. Rb3 {[%emt 0:00:22]} Nc5 {[%emt 0:00:22]} 33. Rh3 {[%emt 0:01:03]} Ne4 {[%emt 0:00:33]} 34. Nf6+ {[%emt 0:00:28]} Nxf6 {[%emt 0:00:27]} 35. exf6 {[%emt 0:00:01]} Rxf6 {[%emt 0:00:51]} 36. f5 {[%emt 0:00:06]} d4 {[%emt 0:00:47]} 37. Bg5 {[%emt 0:00:35]} Rfd6 {[%emt 0:01:03]} 38. Rg3 {[%emt 0:02:59]} Kf8 {[%emt 0:00:59]} 39. f6 {[%emt 0:06:29]} Re6 {[%emt 0:04:59]} 40. Bh6+ {[%emt 0:00:00]} Ke8 {[%emt 0:00:00]} 41. Rg8+ {[%emt 0:01:07]} Kd7 {[%emt 0:01:02]} 42. Rg7 {[%emt 0:00:02]} Nd6 {[%emt 0:04:32]} 43. g4 {[%emt 0:02:19]} Re4 {[%emt 0:01:17]} 44. h4 {[%emt 0:02:44]} Ke6 {[%emt 0:00:40]} 45. h5 {[%emt 0:00:21]} d3 {[%emt 0:02:28]} 46. g5 {[%emt 0:02:18]} Rh8 {[%emt 0:05:17]} 47. Rd1 {[%emt 0:01:20]} Rd4 {[%emt 0:01:53]} 48. Kf2 {[%emt 0:00:58]} Rd5 {[%emt 0:04:33]} 49. Re1+ {[%emt 0:00:39]} Re5 {[%emt 0:02:38]} 50. Rxe5+ {[%emt 0:05:08]} Kxe5 {[%emt 0:00:12]} 51. Ke3 {[%emt 0:04:05]} Ke6 {[%emt 0:02:40]} 52. Kxd3 {[%emt 0:00:30]} Nf5 {[%emt 0:01:47]} 53. Kc4 {[%emt 0:01:15]} Nxg7 {[%emt 0:00:52]} 54. Bxg7 {[%emt 0:01:46]} Rg8 {[%emt 0:00:40]} 55. g6 {[%emt 0:00:22]} fxg6 {[%emt 0:00:19]} 56. hxg6 {[%emt 0:00:06]} hxg6 {[%emt 0:00:07]} 57. Kb5 {[%emt 0:00:07]} Kf7 0-1

[Event "EYCC Open-U10 2019"]
[Site "Bratislava"]
[Date "2019.08.08"]
[Round "7.38"]
[White "Tran, Sixten"]
[Black "Sava, Robert-Gabriel"]
[Result "0-1"]
[ECO "B06"]
[WhiteElo "1516"]
[BlackElo "1292"]
[Annotator "NA"]
[PlyCount "58"]
[EventDate "2019.08.02"]
[EventType "swiss"]
[EventCountry "SVK"]
[SourceTitle "playchess.com"]
[Source "ChessBase"]
[SourceQuality "1"]
[TimeControl "40/5400+30:1800+30"]

1. e4 {[%emt 0:00:00]} g6 {[%emt 0:00:00]} 2. d4 {[%emt 0:00:50]} Bg7 {[%emt 0:00:13]} 3. Nf3 {[%emt 0:06:05]} d6 {[%emt 0:00:37]} 4. Bc4 {[%emt 0:01:21]} a6 {[%emt 0:03:39]} 5. O-O {[%emt 0:08:30]} b5 {[%emt 0:00:40]} 6. Bd5 {[%emt 0:14:18]} c6 {[%emt 0:00:44]} 7. Bb3 {[%emt 0:00:15]} e6 {[%emt 0:00:51]} 8. d5 {[%emt 0:01:48]} cxd5 {[%emt 0:00:21]} 9. exd5 {[%emt 0:00:10]} e5 {[%emt 0:00:14]} 10. Re1 {[%emt 0:04:29]} Ne7 {[%emt 0:00:28]} 11. Nc3 {[%emt 0:07:31]} O-O {[%emt 0:01:22]} 12. Bg5 {[%emt 0:07:16]} h6 {[%emt 0:00:31]} 13. Be3 {[%emt 0:04:29]} f5 {[%emt 0:01:01]} 14. a4 {[%emt 0:11:38]} b4 {[%emt 0:01:39]} 15. Na2 {[%emt 0:02:01]} f4 {[%emt 0:01:30]} 16. Bc1 {[%emt 0:03:12]} a5 {[%emt 0:00:15]} 17. c3 {[%emt 0:00:33]} bxc3 {[%emt 0:00:29]} 18. Nxc3 {[%emt 0:00:28]} g5 {[%emt 0:00:11]} 19. Ne4 {[%emt 0:02:59]} Bf5 {[%emt 0:01:43]} 20. Bc2 {[%emt 0:01:52]} Na6 {[%emt 0:00:35]} 21. h3 {[%emt 0:09:28]} Nb4 {[%emt 0:00:58]} 22. Bb3 {[%emt 0:02:24]} Kh8 {[%emt 0:02:08]} 23. Nh2 {[%emt 0:04:20]} Bg6 {[%emt 0:02:40]} 24. Nc3 {[%emt 0:02:28]} Nf5 {[%emt 0:01:49]} 25. Nb5 {[%emt 0:01:16]} Qd7 {[%emt 0:01:02]} 26. Qg4 {[%emt 0:01:46]} Bf6 {[%emt 0:01:06]} 27. Bd2 {[%emt 0:01:10]} Na6 {[%emt 0:00:43]} 28. Bxa5 {[%emt 0:00:33]} Nc5 {[%emt 0:00:28]} 29. Bb4 {[%emt 0:00:26]} Nxb3 {[%emt 0:00:23]} 0-1

[Event "EYCC Open-U10 2019"]
[Site "Bratislava"]
[Date "2019.08.08"]
[Round "7.39"]
[White "Paholok, Adam"]
[Black "Mehtizada, Murad"]
[Result "0-1"]
[ECO "D24"]
[WhiteElo "1296"]
[BlackElo "1516"]
[Annotator "NA"]
[PlyCount "40"]
[EventDate "2019.08.02"]
[EventType "swiss"]
[EventCountry "SVK"]
[SourceTitle "playchess.com"]
[Source "ChessBase"]
[SourceQuality "1"]
[TimeControl "40/5400+30:1800+30"]

1. d4 {[%emt 0:00:00]} d5 {[%emt 0:00:00]} 2. c4 dxc4 3. Nf3 {[%emt 0:00:30]} Nf6 {[%emt 0:00:00]} 4. Nc3 {[%emt 0:00:08]} e6 {[%emt 0:00:30]} 5. e4 {[%emt 0:00:45]} c5 {[%emt 0:01:34]} 6. Bxc4 {[%emt 0:01:05]} a6 {[%emt 0:00:24]} 7. Bg5 {[%emt 0:02:52]} Be7 {[%emt 0:00:20]} 8. O-O {[%emt 0:02:02]} O-O {[%emt 0:00:39]} 9. Qc2 {[%emt 0:02:06]} b5 10. Be2 Bb7 {[%emt 0:08:46]} 11. Rad1 {[%emt 0:01:28]} Qc7 {[%emt 0:21:28]} 12. e5 {[%emt 0:06:50]} Ne8 {[%emt 0:09:45]} 13. h4 {[%emt 0:02:53]} Nc6 {[%emt 0:07:04]} 14. h5 {[%emt 0:03:41]} cxd4 {[%emt 0:11:18]} 15. Ne4 {[%emt 0:05:26]} h6 16. Bxe7 {[%emt 0:01:29]} Qxe7 {[%emt 0:03:24]} 17. Nxd4 {[%emt 0:00:32]} Nxe5 {[%emt 0:01:23]} 18. f4 {[%emt 0:01:42]} Rc8 {[%emt 0:02:51]} 19. Qb1 {[%emt 0:01:42]} Nc4 {[%emt 0:01:38]} 20. b3 {[%emt 0:06:14]} Ne3 0-1